bitfinex-derivatives/quotes_BNBF0:USTF0_20250413
["timestamp","ask_amount","ask_price","bid_price","bid_amount"]
[1744525838450,0.30957335,594.33,593.14,0.30172421]
[1744525838653,0.62959861,594.34,593.13,0.29315632]
[1744525838858,0.30955371,594.33,593.14,0.30163142]
[1744525839657,0.30955371,594.33,593.15,1.476]
[1744525839858,0.30955371,594.33,593.16,0.30163142]
[1744525840158,0.30955371,594.33,593.16,1.11463142]
[1744525840555,0.30955371,594.33,593.17,0.30163142]
[1744525841958,0.30955371,594.33,593.16,1.675]
[1744525841959,0.62959861,594.34,593.16,1.675]
[1744525842161,0.30955778,594.33,593.17,0.30162887]
[1744525847059,0.62962576,594.34,593.16,1.96811804]
[1744525847261,0.30955132,594.33,593.17,0.30162632]
[1744525850262,0.62962576,594.34,593.16,1.96811804]
[1744525850463,0.62962576,594.34,593.17,0.30162965]
[1744525850464,0.30955309,594.33,593.17,0.30162965]
[1744525853863,0.30955309,594.33,593.16,1.96811804]
[1744525856766,0.62962576,594.34,593.16,1.96811804]
[1744525856962,0.309563,594.33,593.16,1.96811804]
[1744525857864,0.309563,594.33,593.16,1.675]
[1744525858169,0.309563,594.33,593.16,1.96811804]
[1744525859569,0.309563,594.33,593.16,2.69411804]
[1744525860070,0.62962576,594.34,593.16,2.69411804]
[1744525860369,0.30955825,594.33,593.16,2.69411804]
[1744525860770,0.30955825,594.33,593.16,2.401]
[1744525861067,0.30955825,594.33,593.16,2.69411804]
[1744525863766,0.33650772,594.34,593.16,2.401]
[1744525863967,0.30956761,594.33,593.16,2.401]
[1744525864471,0.33650772,594.34,593.16,2.401]
[1744525864673,0.30956846,594.33,593.16,2.401]
[1744525865167,0.30956846,594.33,593.16,2.69411804]
[1744525865874,0.30956846,594.33,593.16,3.35011804]
[1744525866874,0.30956846,594.33,593.16,3.057]
[1744525867673,0.33651904,594.32,593.16,3.057]
[1744525867874,0.30960429,594.31,593.16,3.057]
[1744525868173,0.30960429,594.31,593.16,3.35014891]
[1744525869074,0.33653037,594.3,593.16,3.35014891]
[1744525869274,0.30960429,594.29,593.16,3.35014891]
[1744525869482,0.33654169,594.28,593.16,3.35014891]
[1744525869669,0.30960429,594.27,593.16,3.35014891]
[1744525869869,0.33655302,594.26,593.16,3.057]
[1744525870073,0.30960429,594.25,593.16,3.057]
[1744525871075,0.29315755,594.24,593.16,3.35015755]
[1744525871275,0.6461743,594.23,593.16,3.35015755]
[1744525871470,0.30960429,594.22,593.16,3.35015755]
[1744525872470,0.64617996,594.22,593.16,3.35015755]
[1744525872670,0.30960429,594.21,593.16,3.35015755]
[1744525872971,0.30960429,594.21,593.16,3.35016249]
[1744525875777,0.30960429,594.21,593.16,3.057]
[1744525875977,0.33657567,594.22,593.16,3.057]
[1744525876177,0.30963192,594.21,593.16,3.35016249]
[1744525878772,0.30963192,594.21,593.16,3.057]
[1744525879075,0.30963192,594.21,593.16,3.35016249]
[1744525879673,0.30963192,594.21,593.16,4.01116249]
[1744525881877,0.30963192,594.21,593.16,3.718]
[1744525883074,0.30963192,594.21,593.16,4.01116249]
[1744525884775,0.30963192,594.21,593.16,3.718]
[1744525886078,0.30963192,594.21,593.16,4.01116249]
[1744525887580,0.62973816,594.22,593.16,4.01116249]
[1744525887880,0.30963223,594.21,593.16,3.718]
[1744525889082,0.30963223,594.21,593.16,4.01116249]
[1744525890783,0.30963223,594.21,593.16,3.718]
[1744525891183,0.30963223,594.21,593.16,4.01116249]
[1744525891680,0.336587,594.2,593.16,4.01116249]
[1744525891885,0.30963223,594.19,593.16,3.718]
[1744525892085,0.33659833,594.18,593.16,3.718]
[1744525892279,0.30963223,594.17,593.16,3.718]
[1744525892484,0.33660966,594.16,593.16,3.718]
[1744525892682,0.30963223,594.15,593.16,3.718]
[1744525892986,0.64624756,594.15,593.16,3.718]
[1744525893182,0.30963223,594.14,593.16,3.718]
[1744525897086,0.60282312,594.14,593.16,3.718]
[1744525897287,0.30963223,594.13,593.16,3.718]
[1744525903697,0.30963223,594.13,593.16,4.451]
[1744525903998,0.33662099,594.14,593.16,4.451]
[1744525904198,0.30965241,594.13,593.16,4.451]
[1744525907302,0.62981312,594.14,593.16,4.451]
[1744525907503,0.30965389,594.13,593.16,4.451]
[1744525915513,0.33662099,594.14,593.16,4.451]
[1744525915714,0.30965736,594.13,593.16,4.451]
[1744525918816,0.33662099,594.14,593.16,4.451]
[1744525919016,0.30965272,594.13,593.16,4.451]
[1744525920418,0.62981312,594.14,593.16,4.451]
[1744525920617,0.30965203,594.13,593.16,4.451]
[1744525924923,0.62981312,594.14,593.16,4.451]
[1744525925119,0.30965408,594.13,593.16,4.451]
[1744525933126,0.30964623,594.12,593.16,4.451]
[1744525933328,0.30964623,594.13,593.16,4.451]
[1744525934634,0.62981312,594.14,593.16,4.451]
[1744525934832,0.30964888,594.13,593.16,4.451]
[1744525936326,0.30964914,594.12,593.16,4.451]
[1744525936530,0.30964914,594.13,593.16,4.451]
[1744525936730,0.30964914,594.12,593.16,4.451]
[1744525936933,0.30964914,594.13,593.16,4.451]
[1744525937133,0.30964914,594.12,593.16,4.451]
[1744525937332,0.30964914,594.13,593.16,4.451]
[1744525937531,0.30964914,594.12,593.16,4.451]
[1744525937728,0.30964914,594.13,593.16,4.451]
[1744525937933,0.30964914,594.12,593.16,4.451]
[1744525938132,0.30964914,594.13,593.16,4.451]
[1744525938333,0.30964914,594.12,593.16,4.451]
[1744525938533,0.30964914,594.13,593.16,4.451]
[1744525939535,0.62981312,594.14,593.16,4.451]
[1744525939734,0.3096463,594.13,593.16,4.451]
[1744525949047,0.62981312,594.14,593.16,4.451]
[1744525949243,0.30960603,594.13,593.16,4.451]
[1744525957957,0.30960603,594.13,593.17,0.30111335]
[1744525958557,0.30960603,594.13,593.15,0.30111335]
[1744525958750,0.30959976,594.12,593.16,0.30109507]
[1744525958954,0.30959976,594.13,593.15,0.30109507]
[1744525959154,0.30959976,594.12,593.16,0.30109507]
[1744525959450,0.30959976,594.13,593.15,0.30109507]
[1744525959652,0.30959976,594.12,593.16,0.30109507]
[1744525959852,0.30959976,594.13,593.15,0.30109507]
[1744525960051,0.30959976,594.13,593.16,0.30109507]
[1744525960254,0.33662099,594.14,592.64,1.06013757]
[1744525960455,0.30957904,594.13,592.65,0.30099369]
[1744525960653,0.30957904,594.13,592.66,0.30099369]
[1744525960954,0.30957904,594.13,592.67,0.30099369]
[1744525961155,0.30957904,594.13,592.69,0.33744453]
[1744525961458,0.30957904,594.13,592.7,1.02899369]
[1744525961659,0.30957904,594.13,592.76,1.06013757]
[1744525961860,0.30957904,594.13,592.77,0.30099369]
[1744525962060,0.30957904,594.13,592.79,0.3373876]
[1744525962259,0.30957904,594.13,592.8,0.30099369]
[1744525962560,0.30957904,594.13,592.82,0.33737053]
[1744525962762,0.30957904,594.13,592.83,0.30099369]
[1744525962961,0.30957904,594.13,592.85,0.33735346]
[1744525963162,0.30957904,594.13,592.86,0.30099369]
[1744525963362,0.30957904,594.13,592.88,0.33733639]
[1744525963664,0.30957904,594.13,592.89,0.30099369]
[1744525963858,0.33662099,594.14,592.91,0.33731932]
[1744525964058,0.33662099,594.14,592.92,0.30099369]
[1744525964264,0.33662099,594.14,592.94,0.33730225]
[1744525964562,0.33662099,594.14,592.95,0.30099369]
[1744525964763,0.33662099,594.14,592.96,0.33729087]
[1744525964963,0.33662099,594.14,592.97,0.30099369]
[1744525965163,0.33662099,594.14,592.98,0.3372795]
[1744525965364,0.33662099,594.14,592.99,0.30099369]
[1744525965565,0.33662099,594.14,593.0,0.33726812]
[1744525965762,0.33662099,594.14,593.01,0.30099369]
[1744525965961,0.33662099,594.14,593.02,0.33725675]
[1744525966163,0.33662099,594.14,593.03,0.30099369]
[1744525966459,0.33662099,594.14,593.04,0.33724537]
[1744525966662,0.33662099,594.14,593.05,0.30099369]
[1744525966865,0.33662099,594.14,593.06,0.337234]
[1744525967068,0.33662099,594.14,593.07,0.30099369]
[1744525967862,0.33662099,594.14,593.08,0.33722263]
[1744525968063,0.33662099,594.14,593.09,0.30099369]
[1744525968466,0.33662099,594.14,593.1,0.33721126]
[1744525968663,0.33662099,594.14,593.11,0.30099369]
[1744525968862,0.33662099,594.14,593.12,0.33719989]
[1744525969064,0.33662099,594.14,593.13,0.30099369]
[1744525969265,0.33662099,594.14,593.14,0.33718852]
[1744525969465,0.33662099,594.14,593.15,0.30099369]
[1744525969666,0.33662099,594.14,593.16,0.33717715]
[1744525969867,0.33662099,594.14,593.17,0.30099369]
[1744525970065,0.29310076,594.44,593.18,0.33716578]
[1744525970265,0.30949333,594.43,593.19,0.30099369]
[1744525970464,0.30949333,594.43,593.2,0.33715441]
[1744525971163,0.30949333,594.43,593.21,0.30071696]
[1744525971467,0.29310076,594.44,593.22,0.33714304]
[1744525971665,0.30950328,594.43,593.23,0.30072104]
[1744525972062,0.30950328,595.04,593.23,0.30072104]
[1744525972265,0.30950328,595.03,593.23,0.30072104]
[1744525972466,0.64562643,595.02,593.23,0.30072104]
[1744525972665,0.30950328,595.01,593.23,0.30072104]
[1744525972866,0.30950328,595.0,593.23,0.30072104]
[1744525973067,0.29299958,595.01,593.22,0.33714304]
[1744525973261,0.30949859,595.0,593.23,0.30071146]
[1744525973467,0.30949859,594.99,593.23,0.30071146]
[1744525973762,0.30949859,594.98,593.23,0.30071146]
[1744525973969,1.28024234,594.95,593.23,0.30071146]
[1744525974168,0.30949859,594.94,593.23,0.30071146]
[1744525974369,0.30949859,594.93,593.23,0.30071146]
[1744525974669,0.30949859,594.92,593.24,0.755]
[1744525974864,0.64568389,594.91,593.25,0.30071146]
[1744525975063,0.3361966,594.89,593.25,0.30071146]
[1744525975262,0.30949859,594.88,593.25,0.30071146]
[1744525975568,0.30949859,594.87,593.26,0.535]
[1744525975766,0.33621921,594.85,593.27,0.30071146]
[1744525975964,0.30949859,594.84,593.27,0.30071146]
[1744525976163,0.33623617,594.82,593.27,0.30071146]
[1744525976362,0.30949859,594.81,593.27,0.30071146]
[1744525976568,0.30949859,594.8,593.27,0.30071146]
[1744525976763,0.33625878,594.78,593.27,0.30071146]
[1744525976963,0.30949859,594.77,593.27,0.30071146]
[1744525977266,0.33627574,594.75,593.27,0.30071146]
[1744525977468,0.30949859,594.74,593.27,0.30071146]
[1744525977661,0.3362927,594.72,593.27,0.30071146]
[1744525977866,0.3362927,594.72,593.26,0.535]
[1744525978066,0.30950091,594.71,593.27,0.30090807]
[1744525978266,0.33630967,594.69,593.27,0.30090807]
[1744525978467,0.30950091,594.68,593.27,0.30090807]
[1744525978668,0.33632664,594.66,593.27,0.30090807]
[1744525978869,0.30950091,594.65,593.27,0.30090807]
[1744525979068,0.3363436,594.63,593.27,0.30090807]
[1744525979370,0.30950091,594.62,593.27,0.30090807]
[1744525979671,0.64585583,594.61,593.27,0.88890807]
[1744525979870,0.64586148,594.6,593.28,0.30090807]
[1744525980169,0.64586714,594.59,593.28,0.30090807]
[1744525980469,0.6458728,594.58,593.28,0.30090807]
[1744525980662,0.64587846,594.57,593.28,1.12690807]
[1744525980866,0.3363832,594.56,593.28,1.12690807]
[1744525981065,0.30950081,594.55,593.28,0.826]
[1744525981271,0.3363832,594.56,593.28,0.826]
[1744525981467,0.30950331,594.54,593.28,0.826]
[1744525981669,0.30950331,594.53,593.28,0.826]
[1744525981966,0.64590915,594.52,593.28,0.826]
[1744525982265,0.6459148,594.51,593.28,0.826]
[1744525982466,0.64592046,594.5,593.29,0.30091654]
[1744525982670,0.64592612,594.49,593.29,0.30091654]
[1744525982871,0.64593178,594.48,593.28,0.826]
[1744525983070,0.64593744,594.47,593.28,0.826]
[1744525983266,0.6459431,594.46,593.28,0.826]
[1744525983469,0.64594876,594.45,593.28,0.826]
[1744525983669,0.30950331,594.44,593.28,0.826]
[1744525984172,0.33644545,594.45,593.28,0.826]
[1744525984373,0.30950435,594.44,593.28,0.826]
[1744525985875,0.33644545,594.45,593.28,0.826]
[1744525986076,0.30950989,594.44,593.28,0.826]
[1744525987879,0.30950989,594.44,593.29,0.30091075]
[1744525988978,0.30950989,594.44,593.29,1.10891075]
[1744525989183,0.30950989,594.44,593.3,0.30091075]
[1744525990080,0.33645677,594.43,593.3,0.30091075]
[1744525990378,0.30950989,594.42,593.3,0.30091075]
[1744525990579,0.64597232,594.42,593.3,0.30091075]
[1744525990779,0.30950946,594.41,593.31,0.30089146]
[1744525990979,0.30950946,594.41,593.3,0.30089146]
[1744525991279,0.30950946,594.41,593.31,0.30089146]
[1744525991478,0.30950946,594.41,593.3,0.30089146]
[1744525991679,0.33647375,594.4,593.31,0.718]
[1744525991979,0.30950946,594.39,593.32,0.30089146]
[1744525992174,0.64598887,594.39,593.32,0.30089146]
[1744525992378,0.30950946,594.38,593.32,0.30089146]
[1744525993880,0.33647941,594.39,593.31,0.718]
[1744525994080,0.30950053,594.38,593.33,0.574]
[1744525994276,0.6459856,594.38,593.34,0.30082504]
[1744525994479,0.30950053,594.37,593.34,0.30082504]
[1744525995381,0.30950053,594.37,593.33,0.574]
[1744525995882,0.33648507,594.38,593.33,0.574]
[1744525998984,0.30946758,594.37,593.33,0.574]
[1744525999185,0.30946758,594.37,593.34,0.30072159]
[1744526000485,0.30946821,594.36,593.35,0.30074663]
[1744526000783,0.30946821,594.35,593.36,0.30074663]
[1744526000985,0.30946821,594.37,593.34,0.30074663]
[1744526001179,0.30946821,594.37,593.37,0.866]
[1744526001382,0.30946821,594.37,593.38,0.30074663]
[1744526003586,0.33648507,594.38,593.37,0.866]
[1744526006087,0.6295303,594.38,593.37,0.866]
[1744526007887,0.33648507,594.38,593.37,0.866]
[1744526008082,0.30951837,594.37,593.37,0.866]
[1744526008280,0.33649073,594.37,593.37,0.866]
[1744526009187,0.30951987,594.36,593.37,0.866]
[1744526009487,0.33649073,594.37,593.37,0.866]
[1744526009683,0.30951291,594.36,593.37,0.866]
[1744526011686,0.33649073,594.37,593.37,0.866]
[1744526011890,0.30950968,594.36,593.37,0.866]
[1744526012691,0.30950968,594.36,593.38,0.559]
[1744526013092,0.33649073,594.37,593.38,0.559]
[1744526013589,0.33649073,594.37,593.39,0.573]
[1744526016796,0.33649073,594.37,593.4,0.588]
[1744526022098,0.33649073,594.37,593.4,1.41]
[1744526025100,0.3094631,594.36,593.4,1.41]
[1744526026295,0.33649073,594.37,593.4,1.41]
[1744526026498,0.30946074,594.36,593.4,1.41]
[1744526028601,0.30946074,594.36,593.4,2.941]
[1744526029399,0.33649073,594.37,593.4,2.941]
[1744526029603,0.30946401,594.36,593.4,2.941]
[1744526030602,0.30946401,594.36,593.41,0.30081254]
[1744526034005,0.33649073,594.37,593.42,0.33702942]
[1744526038109,0.33649073,594.37,593.42,0.94102942]
[1744526039410,0.30947114,594.36,593.42,0.94102942]
[1744526039711,0.33649073,594.37,593.42,0.94102942]
[1744526043918,0.33649073,594.37,593.42,1.49402942]
[1744526048815,0.33649073,594.37,593.42,2.27202942]
[1744526051816,0.33649073,594.37,593.42,3.17202942]
[1744526055718,0.33649073,594.37,593.42,3.99302942]
[1744526065326,0.30943516,594.36,593.43,0.30060177]
[1744526065528,0.33649073,594.37,593.42,3.99302942]
[1744526065732,0.30943545,594.36,593.42,2.83602942]
[1744526065927,0.33649073,594.37,593.42,2.83602942]
[1744526066128,0.33649073,594.37,593.42,3.45302942]
[1744526066533,0.30943322,594.36,593.43,0.30056581]
[1744526068735,0.30943322,594.36,593.43,0.96756581]
[1744526068937,0.33649073,594.37,593.43,0.667]
[1744526069236,0.30942628,594.36,593.44,0.3005457]
[1744526072039,0.33649073,594.37,593.43,1.492]
[1744526072238,0.30942607,594.36,593.45,0.618]
[1744526072539,0.30942607,594.36,593.46,0.30051882]
[1744526077544,0.30942607,594.36,593.47,0.827]
[1744526077846,0.30942607,594.36,593.48,0.30051882]
[1744526078443,0.33649073,594.37,593.47,0.827]
[1744526078641,0.30943632,594.36,593.48,0.30053718]
[1744526079643,0.30943632,594.36,593.49,0.546]
[1744526079844,0.30943632,594.36,593.5,0.30053718]
[1744526080046,0.33649073,594.37,593.49,0.546]
[1744526080345,0.30943643,594.36,593.49,0.546]
[1744526081646,0.33649073,594.37,593.49,0.546]
[1744526081846,0.3094362,594.36,593.49,0.546]
[1744526087953,0.3094362,594.36,593.5,0.87]
[1744526088153,0.30943384,594.35,593.5,0.87]
[1744526088348,0.30943384,594.34,593.5,0.87]
[1744526088649,0.30943384,594.33,593.5,0.87]
[1744526088853,0.30943434,594.36,593.5,0.87]
[1744526089655,0.33649073,594.37,593.5,0.87]
[1744526089854,0.3094334,594.36,593.5,0.87]
[1744526090955,0.3094334,594.36,593.51,0.30055684]
[1744526091157,0.3094334,594.36,593.5,0.87]
[1744526091354,0.30943227,594.35,593.5,0.87]
[1744526091654,0.30943227,594.34,593.5,0.87]
[1744526091854,0.30943227,594.36,593.5,0.87]
[1744526094457,0.33649073,594.37,593.5,0.87]
[1744526094654,0.30943378,594.36,593.5,0.87]
[1744526097656,0.33649073,594.37,593.5,0.87]
[1744526097855,0.30943291,594.36,593.5,0.87]
[1744526098754,0.30943291,594.36,593.51,0.841]
[1744526099456,0.30943461,594.35,593.52,0.772]
[1744526099657,0.30943461,594.36,593.52,0.772]
[1744526100257,0.33649073,594.37,593.52,0.772]
[1744526100951,0.30943615,594.36,593.52,0.772]
[1744526101458,0.33649073,594.37,593.52,0.772]
[1744526102760,0.33649073,594.37,593.52,1.341]
[1744526109566,0.33649073,594.37,593.52,2.176]
[1744526119379,0.33649073,594.37,593.53,0.30022357]
[1744526121582,0.33649073,594.37,593.52,0.835]
[1744526121783,0.33649073,594.37,593.53,0.30021208]
[1744526122283,0.33649073,594.37,593.53,1.04421208]
[1744526122583,0.33649073,594.37,593.54,0.30021208]
[1744526123182,0.33649073,594.37,593.53,0.744]
[1744526123380,0.33649073,594.37,593.54,1.00621]
[1744526123577,0.33649073,594.37,593.54,0.706]
[1744526126583,0.30939613,594.36,593.55,0.30025272]
[1744526128182,0.30939615,594.35,593.56,0.30025301]
[1744526128381,0.30939615,594.34,593.54,0.706]
[1744526128582,0.30939615,594.36,593.54,0.706]
[1744526128784,0.33649073,594.37,593.55,0.30026818]
[1744526128986,0.30940002,594.36,593.55,0.30026818]
[1744526129586,0.30940002,594.36,593.55,1.12026818]
[1744526129790,0.30940002,594.36,593.56,0.30026818]
[1744526133793,0.30940002,594.36,593.55,1.11299712]
[1744526133993,0.30940002,594.36,593.55,0.82]
[1744526134194,0.30940002,594.36,593.55,1.11299712]
[1744526136994,0.30940002,594.36,593.55,0.82]
[1744526137294,0.30940002,594.36,593.55,1.11299712]
[1744526137694,0.30940002,594.36,593.56,0.30041827]
[1744526138690,0.30940002,594.36,593.55,1.11299712]
[1744526138995,0.30940002,594.36,593.56,0.30041956]
[1744526139194,0.30940002,594.36,593.55,1.11299712]
[1744526139495,0.33649073,594.37,593.55,1.11299712]
[1744526139690,0.30941026,594.36,593.55,1.11299712]
[1744526139996,0.30941026,594.36,593.55,0.82]
[1744526141190,0.30941841,594.35,593.55,1.436]
[1744526141394,0.30941841,594.36,593.55,1.72899712]
[1744526141594,0.30941841,594.35,593.55,1.72899712]
[1744526141894,0.30941841,594.36,593.55,1.72899712]
[1744526142097,0.30941841,594.35,593.55,1.72899712]
[1744526142298,0.30941841,594.36,593.55,1.72899712]
[1744526142492,0.30941841,594.35,593.55,1.72899712]
[1744526142697,0.30941841,594.36,593.55,1.72899712]
[1744526142992,0.30941841,594.36,593.55,1.436]
[1744526143291,0.30941841,594.36,593.55,1.72899712]
[1744526143797,0.33649073,594.37,593.55,1.72899712]
[1744526145897,0.33649073,594.37,593.55,1.436]
[1744526149398,0.33649073,594.37,593.55,2.128]
[1744526151302,0.33649073,594.37,593.55,2.656]
[1744526152402,0.33649073,594.37,593.55,3.509]
[1744526154206,0.30942431,594.36,593.55,3.509]
[1744526155599,0.33649073,594.37,593.55,3.509]
[1744526155804,0.30945366,594.36,593.55,3.509]
[1744526159400,0.33649073,594.37,593.55,3.509]
[1744526160101,0.30946038,594.36,593.55,3.509]
[1744526163207,0.33649073,594.37,593.55,3.509]
[1744526163409,0.30945961,594.36,593.55,3.509]
[1744526164806,0.33649073,594.37,593.55,3.509]
[1744526165110,0.30946121,594.36,593.55,3.509]
[1744526166412,0.33649073,594.37,593.55,3.509]
[1744526166712,0.3094615,594.36,593.55,3.509]
[1744526168013,0.33649073,594.37,593.55,3.509]
[1744526168214,0.30946011,594.36,593.55,3.509]
[1744526169614,0.33649073,594.37,593.55,3.509]
[1744526169815,0.30946221,594.36,593.55,3.509]
[1744526172821,0.33649073,594.37,593.55,3.509]
[1744526173023,0.30945967,594.36,593.55,3.509]
[1744526174323,0.33649073,594.37,593.55,4.196]
[1744526174524,0.30946191,594.36,593.55,4.196]
[1744526177421,0.33649073,594.37,593.55,4.196]
[1744526177619,0.30946052,594.36,593.55,4.196]
[1744526179124,0.30946225,594.35,593.55,4.196]
[1744526179325,0.30946225,594.36,593.55,4.196]
[1744526179523,0.30946225,594.35,593.55,4.196]
[1744526179723,0.30946225,594.36,593.55,4.196]
[1744526185431,0.30948786,594.35,593.55,4.196]
[1744526185632,0.30948786,594.36,593.55,4.196]
[1744526185826,0.30948786,594.35,593.55,4.196]
[1744526186029,0.30948786,594.36,593.55,4.196]
[1744526186230,0.30948786,594.35,593.55,4.196]
[1744526186432,0.30948786,594.36,593.55,4.196]
[1744526186631,0.30948786,594.35,593.55,4.196]
[1744526186833,0.30948786,594.36,593.55,4.196]
[1744526187029,0.30948786,594.35,593.55,4.196]
[1744526187228,0.30948786,594.36,593.55,4.196]
[1744526187433,0.30948786,594.35,593.55,4.196]
[1744526187734,0.30948786,594.36,593.55,4.196]
[1744526187927,0.30948786,594.35,593.55,4.196]
[1744526188132,0.30948786,594.34,593.55,4.196]
[1744526188330,0.30948786,594.36,593.55,4.196]
[1744526188530,0.33649073,594.37,593.55,4.196]
[1744526188736,0.3094882,594.36,593.55,4.196]
[1744526202756,0.33649073,594.37,593.55,4.196]
[1744526202954,0.30948963,594.36,593.55,4.196]
[1744526204355,0.33649073,594.37,593.55,4.196]
[1744526204558,0.30949026,594.36,593.55,4.196]
[1744526209362,0.30948801,594.35,593.55,4.196]
[1744526209565,0.30948801,594.37,593.55,4.196]
[1744526209763,0.30948801,594.34,593.55,4.196]
[1744526209960,0.30948801,594.33,593.55,4.196]
[1744526210157,0.30948801,594.37,593.55,4.196]
[1744526210362,0.30948801,594.36,593.55,4.196]
[1744526210663,0.30948801,594.35,593.55,4.196]
[1744526210858,0.30948801,594.37,593.55,4.196]
[1744526211063,0.30948801,594.36,593.55,4.196]
[1744526211365,0.30948801,594.37,593.55,4.196]
[1744526211567,0.30948801,594.36,593.55,4.196]
[1744526211864,0.30948801,594.35,593.55,4.196]
[1744526212068,0.30948801,594.34,593.55,4.196]
[1744526212261,0.29304523,594.38,593.55,4.196]
[1744526212463,0.30948801,594.37,593.55,4.196]
[1744526215168,0.30948801,594.53,593.55,4.196]
[1744526215467,1.58973035,594.52,593.55,4.196]
[1744526215660,0.30948801,594.51,593.55,4.196]
[1744526216367,0.29302796,594.5,593.55,4.196]
[1744526216568,0.30948801,594.49,593.55,4.196]
[1744526218168,0.30948801,594.5,593.55,4.196]
[1744526218569,1.28024234,594.51,593.55,4.196]
[1744526218763,0.30948512,594.5,593.55,4.196]
[1744526219269,0.29302919,594.49,593.55,4.196]
[1744526219469,0.30948512,594.48,593.55,4.196]
[1744526219670,1.28024234,594.46,593.55,4.196]
[1744526219868,0.30948512,594.45,593.55,4.196]
[1744526220169,1.28024234,594.46,593.55,4.196]
[1744526220363,0.30949898,594.45,593.55,4.196]
[1744526222265,0.29303536,594.44,593.55,4.196]
[1744526222470,0.30949898,594.43,593.55,4.196]
[1744526224169,0.30949898,594.99,593.55,4.196]
[1744526224366,0.29296875,594.42,593.55,4.196]
[1744526224566,0.3095011,594.41,593.55,4.196]
[1744526224767,1.28024234,595.0,593.55,4.196]
[1744526225177,1.28024234,595.01,593.55,4.196]
[1744526225777,0.30950674,594.99,593.55,4.196]
[1744526225978,0.30950674,594.98,593.55,4.196]
[1744526226173,0.30950674,594.97,593.55,4.196]
[1744526226372,0.30950674,594.96,593.55,4.196]
[1744526226577,0.30950674,594.95,593.55,4.196]
[1744526226778,0.30950674,594.94,593.55,4.196]
[1744526227078,0.30950674,594.93,593.55,4.196]
[1744526227278,0.30950674,594.92,593.55,4.196]
[1744526227577,0.30950674,594.91,593.55,4.196]
[1744526227781,1.28024234,594.49,593.55,4.196]
[1744526228078,0.30950674,594.48,593.55,4.196]
[1744526230079,0.30951463,594.47,593.55,4.196]
[1744526230275,0.30951463,594.48,593.55,4.196]
[1744526230583,1.28024234,594.47,593.55,4.196]
[1744526230878,0.30951463,594.46,593.55,4.196]
[1744526231481,0.29303906,594.45,593.55,4.196]
[1744526231876,0.3095124,594.44,593.55,4.196]
[1744526233180,0.3095124,594.54,593.55,4.196]
[1744526233378,0.29302919,594.43,593.55,4.196]
[1744526233583,0.3095124,594.42,593.55,4.196]
[1744526233983,0.3095124,594.52,593.55,4.196]
[1744526234179,0.3095124,594.51,593.55,4.196]
[1744526234384,0.3095124,594.52,593.55,4.196]
[1744526234585,0.60254406,594.51,593.55,4.196]
[1744526234785,0.3095124,594.5,593.55,4.196]
[1744526236186,0.3095124,594.52,593.55,4.196]
[1744526236387,0.3095121,594.51,593.55,4.196]
[1744526237386,0.29303289,594.5,593.55,4.196]
[1744526237582,0.3095121,594.49,593.55,4.196]
[1744526237784,0.29303289,594.5,593.55,4.196]
[1744526237986,0.30950698,594.49,593.55,4.196]
[1744526239289,0.30950698,594.51,593.55,4.196]
[1744526239488,0.30950698,594.48,593.55,4.196]
[1744526239690,0.30950698,594.47,593.55,4.196]
[1744526239885,0.30950698,594.51,593.55,4.196]
[1744526240491,0.29303289,594.5,593.55,4.196]
[1744526240689,0.30950698,594.49,593.55,4.196]
[1744526242190,0.30950698,594.51,593.55,4.196]
[1744526242391,0.30950698,594.5,593.55,4.196]
[1744526242587,0.33640584,594.52,593.55,4.196]
[1744526242789,0.30950609,594.51,593.55,4.196]
[1744526243292,0.29303289,594.5,593.55,4.196]
[1744526243491,0.30950609,594.49,593.55,4.196]
[1744526244191,0.29303289,594.5,593.55,4.196]
[1744526244392,0.30950334,594.49,593.55,4.196]
[1744526245291,0.30950334,594.48,593.55,4.196]
[1744526245487,0.29303289,594.48,593.55,4.196]
[1744526245690,0.30950334,594.47,593.55,4.196]
[1744526245890,0.30950353,594.46,593.55,4.196]
[1744526246090,0.30950353,594.47,593.55,4.196]
[1744526246286,0.30950353,594.46,593.55,4.196]
[1744526246491,0.30950353,594.45,593.55,4.196]